{"text_format":"1","workbook":"xlsx","n_sheets":4,"sheets":["Cedula7B","Enviar","Carreras","Prompt"],"not_rendered":{"charts":0,"images":4,"macros":1,"external_links":0,"defined_names":1,"comments":1,"pivot_tables":0},"unopened":[],"bounds":{"document_bytes":16777216,"sheet_cells":100000,"rows_first":2000,"rows_last":500,"rows_between":2000,"halvings":0,"cell_chars":16384,"cell_head_chars":4096},"cells_cut":0,"cells_raw":0,"read":"whole","date_system":"1900"}

{"sheet":"Cedula7B","index":0,"n_rows":196,"n_cols":37,"rows_kept":196,"cut":false,"hidden":true,"merged":[[101,31,103,32],[101,33,103,34],[101,35,103,36],[102,11,103,12],[102,17,103,18],[79,11,80,12],[79,17,80,18],[78,25,80,26],[78,35,80,36],[78,27,80,28],[78,29,80,30],[78,31,80,32],[78,33,80,34],[101,27,103,28],[101,29,103,30],[102,15,103,16],[102,19,103,20],[102,21,103,22],[102,23,103,24],[101,11,101,16],[101,17,101,20],[101,21,101,24],[101,25,103,26],[79,19,80,20],[24,2,25,2],[22,12,22,19],[23,16,23,19],[24,12,24,13],[24,16,24,17],[24,14,24,15],[22,2,23,8],[24,3,25,8],[55,3,56,9],[54,18,54,21],[55,20,55,21],[55,18,55,19],[55,16,55,17],[36,10,36,11],[37,10,37,11],[35,10,35,11],[40,10,40,11],[41,10,41,11],[45,2,47,3],[48,4,48,6],[48,7,48,8],[49,4,49,6],[50,4,50,6],[49,7,49,8],[2,22,2,23],[0,5,0,16],[12,18,12,19],[23,12,23,15],[24,18,24,19],[54,10,54,13],[14,4,14,19],[1,18,3,20],[1,5,1,15],[22,20,22,27],[12,4,12,6],[2,5,2,15],[3,5,3,15],[53,18,53,25],[23,24,23,27],[24,26,24,27],[23,20,23,23],[24,24,24,25],[24,20,24,21],[24,22,24,23],[22,10,25,11],[33,10,33,11],[34,10,34,11],[46,4,46,8],[55,24,55,25],[54,22,54,25],[147,17,147,20],[147,2,147,7],[147,8,147,11],[148,17,148,20],[147,12,147,16],[148,2,148,7],[148,8,148,11],[148,12,148,16],[55,22,55,23],[55,2,56,2],[55,10,55,11],[145,8,145,11],[55,14,55,15],[145,2,145,7],[145,12,145,16],[145,17,145,20],[55,12,55,13],[146,17,146,20],[146,2,146,7],[146,8,146,11],[146,12,146,16],[102,13,103,14],[79,21,80,22],[79,23,80,24],[78,2,80,8],[78,9,80,10],[81,4,81,7],[83,3,83,8],[84,3,84,8],[78,11,78,16],[78,17,78,20],[78,21,78,24],[125,10,125,11],[125,12,125,13],[124,10,124,13],[53,10,53,17],[27,10,27,11],[28,10,28,11],[42,10,42,11],[29,10,29,11],[30,10,30,11],[31,10,31,11],[32,10,32,11],[38,10,38,11],[39,10,39,11],[47,11,47,12],[125,14,125,15],[54,14,54,17],[125,16,125,17],[124,14,124,17],[101,9,103,10],[79,13,80,14],[79,15,80,16],[46,9,46,12],[48,9,48,10],[50,7,50,8],[47,7,47,8],[47,9,47,10],[45,4,45,12],[106,3,106,8],[107,3,107,8],[108,3,108,8],[58,3,58,8],[48,11,48,12],[49,9,49,10],[50,9,50,10],[49,11,49,12],[50,11,50,12],[53,2,54,9],[88,3,88,8],[85,3,85,8],[86,3,86,8],[87,3,87,8],[124,2,126,7],[124,8,125,9],[59,3,59,8],[73,3,73,8],[60,3,60,8],[61,3,61,8],[62,3,62,8],[63,3,63,8],[64,3,64,8],[65,3,65,8],[66,3,66,8],[67,3,67,8],[89,3,89,8],[90,3,90,8],[68,3,68,8],[115,3,115,8],[109,3,109,8],[110,3,110,8],[111,3,111,8],[112,3,112,8],[104,4,104,7],[16,15,16,19],[16,4,16,12],[44,2,44,12],[121,3,121,8],[116,3,116,8],[117,3,117,8],[118,3,118,8],[119,3,119,8],[120,3,120,8],[69,3,69,8],[70,3,70,8],[71,3,71,8],[72,3,72,8],[113,3,113,8],[114,3,114,8],[91,3,91,8],[92,3,92,8],[101,2,103,8],[98,3,98,8],[93,3,93,8],[94,3,94,8],[95,3,95,8],[96,3,96,8],[97,3,97,8]]}
[]
[null,null,null,null,null,"CENSO EDUCATIVO 2023",null,null,null,null,null,null,null,null,null,null,null,null,"7B"]
[null,null,null,null,null,"EDUCACIÓN SUPERIOR"]
[null,null,null,null,null,"FORMACIÓN ARTÍSTICA (ESFA)"]
[null,null,"Versión :",1]
[null,null,"INSTRUCCIONES DEL FORMATO ELECTRÓNICO "]
[]
[]
[]
[null,null,"IDENTIFICACIÓN DEL SERVICIO EDUCATIVO"]
[]
[]
[null,null,"1. CÓDIGO MODULAR :",null,null,null,null,null,null,null,null,null,null,null,"2. CÓDIGO DE LOCAL EDUCATIVO :"]
[]
[null,null,"3. NOMBRE DEL SERVICIO  :",null,""]
[]
[null,null,"4. DISTRITO :",null,"",null,null,null,null,null,null,null,null,null,"LOCALIDAD :  ",""]
[]
[]
[]
[null,null,"100. RESULTADO DEL EJERCICIO EDUCATIVO"]
[null,null,"101. MATRÍCULADOS Y RETIRADOS EN EL AÑO 2023, POR SEMESTRE ACADÉMICO Y SEXO, SEGÚN CARRERA Y ESPECIALIDAD"]
["01: Presencial",null,"CARRERAS",null,null,null,null,null,null,null,"TIPO DE MODALIDAD",null,"SEMESTRE-I",null,null,null,null,null,null,null,"SEMESTRE-II"]
["02: Semipresencial",null,null,null,null,null,null,null,null,null,null,null,"FORMACIÓN ARTÍSTICA",null,null,null,"EDUCACIÓN ARTÍSTICA",null,null,null,"FORMACIÓN ARTÍSTICA",null,null,null,"EDUCACIÓN ARTÍSTICA"]
["03: A Distancia",null,"CÓDIGO","DENOMINACIÓN",null,null,null,null,null,null,null,null,"Matriculados",null,"Retirados",null,"Matriculados",null,"Retirados",null,"Matriculados",null,"Retirados",null,"Matriculados",null,"Retirados"]
[{"$f":"SUM(M27:N27,Q27:R27,U27:V27,Y27:Z27)","v":0},null,null,null,null,null,null,null,null,null,null,null,"H","M","H","M","H","M","H","M","H","M","H","M","H","M","H","M"]
[3,null,"0000000000","TOTAL",null,null,null,null,null,null,null,null,{"$f":"SUM(M28:M43)","v":0},0,0,0,0,0,0,0,0,0,{"$f":"SUM(W28:W43)","v":0},0,0,0,0,0]
[{"$f":"IF(AND(D28<>\"\",SUM(M28:AB28)=0),1,IF(AND(D28=\"\",SUM(M28:AB28)>0),2,IF(AND(D28<>\"\",SUM(M28:AB28)>0),3,0)))","v":0},null,null,{"$f":"IF(ISERROR(VLOOKUP($C28,Carrera,2,FALSE)),\"\",VLOOKUP($C28,Carrera,2,FALSE))","v":""}]
[0,null,null,{"$f":"IF(ISERROR(VLOOKUP($C29,Carrera,2,FALSE)),\"\",VLOOKUP($C29,Carrera,2,FALSE))","v":""}]
[0,null,null,{"$f":"IF(ISERROR(VLOOKUP($C30,Carrera,2,FALSE)),\"\",VLOOKUP($C30,Carrera,2,FALSE))","v":""}]
[0,null,null,""]
[0,null,null,""]
[0,null,null,""]
[0,null,null,""]
[0,null,null,""]
[0,null,null,""]
[0,null,null,""]
[0,null,null,""]
[0,null,null,""]
[0,null,null,""]
[0,null,null,""]
[0,null,null,""]
[0,null,null,""]
[]
[null,null,"102. ¿CUÁNTOS ESTUDIANTES QUE INGRESARON A ESTA INSTITUCIÓN EN EL CICLO I DEL PERIODO 2023, SON EGRESADOS DEL 5º AÑO DE EDUCACIÓN SECUNDARIA DEL PERIODO 2022?"]
[null,null,"SEMESTRE",null,"Número de estudiantes ingresantes al primer ciclo en el periodo 2023, que egresaron en el 5º de Secundaria del 2022"]
[null,null,null,null,"FORMACIÓN ARTÍSTICA",null,null,null,null,"EDUCACIÓN ARTÍSTICA"]
[null,null,null,null,null,"H",null,"M",null,"H",null,"M"]
["00",null,"TOTAL",{"$f":"E49+H49+J49+L49","v":0},{"$f":"E50+E51","v":0},null,null,{"$f":"H50+H51","v":0},null,{"$f":"J50+J51","v":0},null,{"$f":"L50+L51","v":0}]
["01",null,"I - 2023",{"$f":"E50+H50+J50+L50","v":0}]
["02",null,"II - 2023",{"$f":"E51+H51+J51+L51","v":0}]
[]
[null,null,"103. EGRESADOS Y TITULADOS EN EL AÑO 2023, POR SEMESTRE ACADÉMICO Y SEXO SEGÚN CARRERA Y ESPECIALIDAD"]
[null,null,"PROGRAMAS DE ESTUDIOS / OPCIÓN OCUPACIONAL",null,null,null,null,null,null,null,"SEMESTRE-I",null,null,null,null,null,null,null,"SEMESTRE-II"]
[null,null,null,null,null,null,null,null,null,null,"FORMACIÓN ARTÍSTICA",null,null,null,"EDUCACIÓN ARTÍSTICA",null,null,null,"FORMACIÓN ARTÍSTICA",null,null,null,"EDUCACIÓN ARTÍSTICA"]
[{"$f":"SUM(K58:Z58)","v":0},null,"CÓDIGO","DENOMINACIÓN",null,null,null,null,null,null,"Egresados    1/",null,"Titulados",null,"Egresados    1/",null,"Titulados",null,"Egresados    1/",null,"Titulados",null,"Egresados    1/",null,"Titulados"]
[null,null,null,null,null,null,null,null,null,null,"H","M","H","M","H","M","H","M","H","M","H","M","H","M","H","M"]
[{"$f":"IF(AND(D58<>\"\",SUM(K58:Z58)=0),1,IF(AND(D58=\"\",SUM(K58:Z58)>0),2,IF(AND(D58<>\"\",SUM(K58:Z58)>0),3,0)))","v":1},null,"0000000000","TOTAL",null,null,null,null,null,{"$f":"SUM(J59:J74)","v":0},{"$f":"SUM(K59:K74)","v":0},{"$f":"SUM(L59:L74)","v":0},{"$f":"SUM(M59:M74)","v":0},0,0,0,0,0,0,0,0,0,0,0,0,{"$f":"SUM(Z59:Z74)","v":0}]
[0,null,{"$f":"IF(C28<>\"\",C28,\"\")","v":""},{"$f":"IF(ISERROR(VLOOKUP($C59,Carrera,2,FALSE)),\"\",VLOOKUP($C59,Carrera,2,FALSE))","v":""},null,null,null,null,null,{"$f":"SUM(K59:Z59)","v":0}]
[0,null,{"$f":"IF(C29<>\"\",C29,\"\")","v":""},{"$f":"IF(ISERROR(VLOOKUP($C60,Carrera,2,FALSE)),\"\",VLOOKUP($C60,Carrera,2,FALSE))","v":""},null,null,null,null,null,{"$f":"SUM(K60:Z60)","v":0}]
[0,null,"",{"$f":"IF(ISERROR(VLOOKUP($C61,Carrera,2,FALSE)),\"\",VLOOKUP($C61,Carrera,2,FALSE))","v":""},null,null,null,null,null,0]
[0,null,"","",null,null,null,null,null,0]
[0,null,"","",null,null,null,null,null,0]
[0,null,"","",null,null,null,null,null,0]
[0,null,"","",null,null,null,null,null,0]
[0,null,"","",null,null,null,null,null,0]
[0,null,"","",null,null,null,null,null,0]
[0,null,"","",null,null,null,null,null,0]
[0,null,"","",null,null,null,null,null,0]
[0,null,"","",null,null,null,null,null,0]
[0,null,"","",null,null,null,null,null,0]
[0,null,"","",null,null,null,null,null,0]
[0,null,"","",null,null,null,null,null,0]
[0,null,"","",null,null,null,null,null,{"$f":"SUM(K74:Z74)","v":0}]
[null,null,"Nota: Los egresados en formación artística y los egresados en educación artística, deben ser menor o igual a los matriculados en formación artística y educación artística de la tabla 101."]
[null,null,"1/ Egresados: Se considera a la persona que ha culminado sus estudios, no presenta ninguna unidad didáctica pendiente de aprobación y ha realizado las experiencias formativas en situaciones reales de trabajo o prácticas preprofesionales."]
[]
[null,null,"104. EGRESADOS POR SEXO, SEGÚN TIPO DE DISCAPACIDAD U OTRA CONDICIÓN EN LOS SEMESTRES 2023-I y II"]
[null,null,"CARRERAS Y/O PROGRAMAS DE ESTUDIOS",null,null,null,null,null,null,"TOTAL",null,"Discapacidad Intelectual",null,null,null,null,null,"Discapacidad Auditiva",null,null,null,"Discapacidad Visual",null,null,null,"Discapacidad Física o Motora",null,"Trastorno del Espectro Autista",null,"Sordoceguera",null,"Multidis-capacidad",null,"Otra discapacidad u otra condición",null," Ninguna  discapacidad"]
[null,null,null,null,null,null,null,null,null,null,null,"Leve",null,"Moderada",null,"Severa",null,"Hipoacusia",null,"Sordera",null,"Baja visión",null,"Ceguera"]
[]
[{"$f":"SUM(A84:A99)","v":0},null,"CÓDIGO",null,"DENOMINACIÓN",null,null,null,null,"H","M","H","M","H","M","H","M","H","M","H","M","H","M","H","M","H","M","H","M","H","M","H","M","H","M","H","M"]
[null,null,"0000000000","TOTAL",null,null,null,null,null,{"$f":"SUM(J84:J99)","v":0},{"$f":"SUM(K84:K99)","v":0},{"$f":"SUM(L84:L99)","v":0},{"$f":"SUM(M84:M99)","v":0},{"$f":"SUM(N84:N99)","v":0},{"$f":"SUM(O84:O99)","v":0},{"$f":"SUM(P84:P99)","v":0},{"$f":"SUM(Q84:Q99)","v":0},{"$f":"SUM(R84:R99)","v":0},{"$f":"SUM(S84:S99)","v":0},{"$f":"SUM(T84:T99)","v":0},{"$f":"SUM(U84:U99)","v":0},{"$f":"SUM(V84:V99)","v":0},{"$f":"SUM(W84:W99)","v":0},{"$f":"SUM(X84:X99)","v":0},{"$f":"SUM(Y84:Y99)","v":0},{"$f":"SUM(Z84:Z99)","v":0},{"$f":"SUM(AA84:AA99)","v":0},{"$f":"SUM(AB84:AB99)","v":0},{"$f":"SUM(AC84:AC99)","v":0},{"$f":"SUM(AD84:AD99)","v":0},{"$f":"SUM(AE84:AE99)","v":0},{"$f":"SUM(AF84:AF99)","v":0},{"$f":"SUM(AG84:AG99)","v":0},{"$f":"SUM(AH84:AH99)","v":0},{"$f":"SUM(AI84:AI99)","v":0},{"$f":"SUM(AJ84:AJ99)","v":0},{"$f":"SUM(AK84:AK99)","v":0}]
[{"$f":"IF(AND(D84<>\"\",SUM(L84:AK84)=0),1,IF(AND(D84=\"\",SUM(L84:AK84)>0),2,IF(AND(D84<>\"\",SUM(L84:AK84)>0),3,0)))","v":0},null,{"$f":"IF(C28<>\"\",C28,\"\")","v":""},{"$f":"IF(ISERROR(VLOOKUP($C84,Carrera,2,FALSE)),\"\",VLOOKUP($C84,Carrera,2,FALSE))","v":""},null,null,null,null,null,{"$f":"SUM(L84,N84,P84,R84,T84,V84,X84,Z84,AB84,AD84,AF84,AH84,AJ84)","v":0},{"$f":"SUM(M84,O84,Q84,S84,U84,W84,Y84,AA84,AC84,AE84,AG84,AI84,AK84)","v":0}]
[0,null,{"$f":"IF(C29<>\"\",C29,\"\")","v":""},{"$f":"IF(ISERROR(VLOOKUP($C85,Carrera,2,FALSE)),\"\",VLOOKUP($C85,Carrera,2,FALSE))","v":""},null,null,null,null,null,{"$f":"SUM(L85,N85,P85,R85,T85,V85,X85,Z85,AB85,AD85,AF85,AH85,AJ85)","v":0},0]
[0,null,"","",null,null,null,null,null,0,0]
[0,null,"","",null,null,null,null,null,0,0]
[0,null,"","",null,null,null,null,null,0,0]
[0,null,"","",null,null,null,null,null,0,0]
[0,null,"","",null,null,null,null,null,0,0]
[0,null,"","",null,null,null,null,null,0,0]
[0,null,"","",null,null,null,null,null,0,0]
[0,null,"",{"$f":"IF(ISERROR(VLOOKUP($C93,Carrera,2,FALSE)),\"\",VLOOKUP($C93,Carrera,2,FALSE))","v":""},null,null,null,null,null,0,0]
[0,null,"","",null,null,null,null,null,{"$f":"SUM(L94,N94,P94,R94,T94,V94,X94,Z94,AB94,AD94,AF94,AH94,AJ94)","v":0},{"$f":"SUM(M94,O94,Q94,S94,U94,W94,Y94,AA94,AC94,AE94,AG94,AI94,AK94)","v":0}]
[0,null,"","",null,null,null,null,null,0,0]
[0,null,"","",null,null,null,null,null,0,0]
[0,null,"","",null,null,null,null,null,0,0]
[0,null,"","",null,null,null,null,null,0,0]
[{"$f":"IF(AND(D99<>\"\",SUM(L99:AK99)=0),1,IF(AND(D99=\"\",SUM(L99:AK99)>0),2,IF(AND(D99<>\"\",SUM(L99:AK99)>0),3,0)))","v":0},null,"","",null,null,null,null,null,0,0]
[]
[null,null,"105. TITULADOS POR SEXO, SEGÚN TIPO DE DISCAPACIDAD U OTRA CONDICIÓN EN LOS SEMESTRES 2023-I y II"]
[null,null,"CARRERAS Y/O PROGRAMAS DE ESTUDIOS",null,null,null,null,null,null,"TOTAL",null,"Discapacidad Intelectual",null,null,null,null,null,"Discapacidad Auditiva",null,null,null,"Discapacidad Visual",null,null,null,"Discapacidad Física o Motora",null,"Trastorno del Espectro Autista",null,"Sordoceguera",null,"Multidis-capacidad",null,"Otra discapacidad u otra condición",null," Ninguna  discapacidad"]
[null,null,null,null,null,null,null,null,null,null,null,"Leve",null,"Moderada",null,"Severa",null,"Hipoacusia",null,"Sordera",null,"Baja visión",null,"Ceguera"]
[]
[{"$f":"SUM(A107:A122)","v":0},null,"CÓDIGO",null,"DENOMINACIÓN",null,null,null,null,"H","M","H","M","H","M","H","M","H","M","H","M","H","M","H","M","H","M","H","M","H","M","H","M","H","M","H","M"]
[null,null,"0000000000","TOTAL",null,null,null,null,null,{"$f":"SUM(J107:J122)","v":0},{"$f":"SUM(K107:K122)","v":0},{"$f":"SUM(L107:L122)","v":0},{"$f":"SUM(M107:M122)","v":0},{"$f":"SUM(N107:N122)","v":0},0,0,0,0,0,0,0,0,0,0,0,0,0,0,0,0,0,0,0,0,0,{"$f":"SUM(AJ107:AJ122)","v":0},{"$f":"SUM(AK107:AK122)","v":0}]
[{"$f":"IF(AND(D107<>\"\",SUM(L107:AK107)=0),1,IF(AND(D107=\"\",SUM(L107:AK107)>0),2,IF(AND(D107<>\"\",SUM(L107:AK107)>0),3,0)))","v":0},null,{"$f":"IF(C28<>\"\",C28,\"\")","v":""},{"$f":"IF(ISERROR(VLOOKUP($C107,Carrera,2,FALSE)),\"\",VLOOKUP($C107,Carrera,2,FALSE))","v":""},null,null,null,null,null,{"$f":"SUM(L107,N107,P107,R107,T107,V107,X107,Z107,AB107,AD107,AF107,AH107,AJ107)","v":0},{"$f":"SUM(M107,O107,Q107,S107,U107,W107,Y107,AA107,AC107,AE107,AG107,AI107,AK107)","v":0}]
[{"$f":"IF(AND(D108<>\"\",SUM(L108:AK108)=0),1,IF(AND(D108=\"\",SUM(L108:AK108)>0),2,IF(AND(D108<>\"\",SUM(L108:AK108)>0),3,0)))","v":0},null,{"$f":"IF(C29<>\"\",C29,\"\")","v":""},{"$f":"IF(ISERROR(VLOOKUP($C108,Carrera,2,FALSE)),\"\",VLOOKUP($C108,Carrera,2,FALSE))","v":""},null,null,null,null,null,0,0]
[0,null,"","",null,null,null,null,null,0,0]
[0,null,"","",null,null,null,null,null,0,0]
[0,null,"","",null,null,null,null,null,0,0]
[0,null,"","",null,null,null,null,null,0,0]
[0,null,"","",null,null,null,null,null,0,0]
[0,null,"","",null,null,null,null,null,0,0]
[0,null,"","",null,null,null,null,null,0,0]
[0,null,"","",null,null,null,null,null,0,0]
[0,null,"","",null,null,null,null,null,{"$f":"SUM(L117,N117,P117,R117,T117,V117,X117,Z117,AB117,AD117,AF117,AH117,AJ117)","v":0},{"$f":"SUM(M117,O117,Q117,S117,U117,W117,Y117,AA117,AC117,AE117,AG117,AI117,AK117)","v":0}]
[0,null,"","",null,null,null,null,null,0,0]
[0,null,"","",null,null,null,null,null,0,0]
[0,null,"","",null,null,null,null,null,0,0]
[0,null,"","",null,null,null,null,null,0,0]
[0,null,"","",null,null,null,null,null,0,0]
[]
[null,null,"106. RETIRADOS EN FORMACIÓN ARTÍSTICA POR CICLO Y SEXO, SEGÚN MOTIVO (al 30/11/2023) EN LOS SEMESTRES 2023-I y II"]
[null,null,"MOTIVO",null,null,null,null,null,"TOTAL",null,"SEMESTRE-I",null,null,null,"SEMESTRE-II"]
[null,null,null,null,null,null,null,null,null,null,"FORMACIÓN ARTÍSTICA",null,"EDUCACIÓN ARTÍSTICA",null,"FORMACIÓN ARTÍSTICA",null,"EDUCACIÓN ARTÍSTICA"]
[null,null,null,null,null,null,null,null,"H","M","H","M","H","M","H","M","H","M"]
["00",null,"TOTAL RETIRADOS",null,null,null,null,null,{"$f":"SUM(I129:I142)","v":0},0,0,0,0,0,0,0,0,0]
["01",null,"Situación económica",null,null,null,null,null,{"$f":"SUM(K129,M129,O129,Q129)","v":0},{"$f":"SUM(L129,N129,P129,R129)","v":0}]
["02",null,"Ingreso a la universidad",null,null,null,null,null,{"$f":"SUM(K130,M130,O130,Q130)","v":0},{"$f":"SUM(L130,N130,P130,R130)","v":0}]
["03",null,"Elección de otra carrera / especialidad",null,null,null,null,null,0,0]
["04",null,"Enfermedad-Mental",null,null,null,null,null,0,0]
["05",null,"Enfermedad-Cancer",null,null,null,null,null,0,0]
["06",null,"Enfermedad-COVID19",null,null,null,null,null,0,0]
["07",null,"Otra enfermedad",null,null,null,null,null,0,0]
["08",null,"Adicción-Consumo de drogas",null,null,null,null,null,0,0]
["09",null,"Adicción-Consumo de alcohol",null,null,null,null,null,0,0]
["10",null,"Otro tipo de adicción",null,null,null,null,null,0,0]
["11",null,"Conducta delictiva",null,null,null,null,null,0,0]
["12",null,"Embarazo",null,null,null,null,null,0,0]
["13",null,"Migración",null,null,null,null,null,0,0]
["14",null,"Otro motivo",null,null,null,null,null,0,0]
[]
[null,null,"DATOS DEL DIRECTOR Y/O RESPONSABLE (S) DEL LLENADO DE LA CÉDULA"]
[]
[null,null,"NOMBRES Y APELLIDOS",null,null,null,null,null,"CARGO",null,null,null,"CORREO ELECTRÓNICO",null,null,null,null,"TELÉFONO"]
[1]
[2]
[3]
[]
[]
[]
[]
[null,null,null,""]
[]
[]
[]
["DIRECTOR(A)"]
["SUB DIRECTOR(A)"]
["DOCENTE"]
["COORDINADOR(A)"]
["ASESOR"]
["ADMINISTRATIVO"]
["ASISTENTE"]
["AUXILIAR"]
["SECRETARIA(O)"]
["ESTADÍSTICO"]
["ESPECIALISTA"]
["BIBLIOTECARIO"]
["CARE"]
["COMANDANTE PNP"]
["CONTADOR"]
["DAIP"]
["DIGITADOR(A)"]
["GERENTE"]
["JEFE ACADÉMICO"]
["JEFE ADMINISTRATIVO"]
["JEFE DE ÁREA"]
["JEFE DE LABORATORIO"]
["JEFE DE PERSONAL"]
["JEFE DE SEDE"]
["JEFE DE UNIDAD"]
["OFICINISTA"]
["OPERADOR DE SISTEMAS"]
["PERSONAL DE SERVICIO"]
["PROGRAMADOR"]
["PROMOTOR(A)"]
["PSICOLOGO"]
["REGISTRADOR(A)"]
["REPRESENTANTE LEGAL"]
["SOPORTE TECNOLOGICO"]
["TÉCNICO ADMINISTRATIVO"]
["TESORERO(A)"]
["TRABAJADOR SOCIAL"]
["TUTOR"]
["OTROS"]

{"sheet":"Enviar","index":1,"n_rows":9,"n_cols":3,"rows_kept":9,"cut":false,"hidden":true,"merged":[[0,0,0,3],[1,0,1,3]]}
["CENSO ESCOLAR 2023"]
["RESULTADO DEL EJERCICIO EDUCATIVO"]
[]
[]
[null,"Paso 1:","Realice el ENVÍO con su clave EOL."]
[]
[null,"Paso 2:","Una vez realizado el ENVÍO,  Revise su constancia de envio."]
[]
[null,"  ADVERTENCIA","Asegúrese de registrar toda la información del nivel informante"]

{"sheet":"Carreras","index":2,"n_rows":169,"n_cols":3,"rows_kept":169,"cut":false,"hidden":true,"merged":[]}
[]
[null,"PROFESIONAL  (5 AÑOS DE ESTUDIO)"]
[null,"APF2156520","ARTE DRAMÁTICO PROFESIONAL"]
[null,"APF2136668","ARTES PLÁSTICAS Y VISUALES EN LA ESPECIALIDAD DEESCULTURA PROFESIONAL"]
[null,"APF2136669","ARTES PLÁSTICAS Y VISUALES EN LA ESPECIALIDAD DEGRABADO Y CERÁMICA PROFESIONAL"]
[null,"APF2136670","ARTES PLÁSTICAS Y VISUALES EN LA ESPECIALIDAD DEPINTURA PROFESIONAL"]
[null,"APF2136671","ARTES VISUALES CON MENCIÓN EN ACUARELA PROFESIONAL"]
[null,"APF2136672","ARTES VISUALES CON MENCIÓN EN CERÁMICA PROFESIONAL"]
[null,"APF2136673","ARTES VISUALES CON MENCIÓN EN ESCULTURA PROFESIONAL"]
[null,"APF2136674","ARTES VISUALES CON MENCIÓN EN PINTURA PROFESIONAL"]
[null,"APF2156675","ARTISTA MÚSICO EN LA ESPECIALIDAD DE COMPOSICIÓN PROFESIONAL"]
[null,"APF2156676","ARTISTA MÚSICO EN LA ESPECIALIDAD DE EJECUCIÓN INSTRUMENTAL Y CANTO PROFESIONAL"]
[null,"APF2136677","ARTISTA PROFESIONAL ARTES PLÁSTICAS Y VISUALES PROFESIONAL"]
[null,"APF2242837","ARTISTA PROFESIONAL CON MENCIÓN EN DIRECCIÓN CORAL"]
[null,"APF2242938","ARTISTA PROFESIONAL CON MENCIÓN EN DIRECCIÓN INSTRUMENTAL"]
[null,"APF2243039","ARTISTA PROFESIONAL CON MENCIÓN EN EJECUCIÓN INSTRUMENTAL"]
[null,"APF2136490","ARTÍSTA PROFESIONAL EN ARTES PLÁSTICAS Y VISUALES PROFESIONAL"]
[null,"APF2156493","ARTISTA PROFESIONAL EN DANZA PROFESIONAL"]
[null,"APF2156649","ARTISTA PROFESIONAL EN FOLKLORE CON MENCIÓN EN DANZA PROFESIONAL"]
[null,"APF2156650","ARTISTA PROFESIONAL EN FOLKLORE CON MENCIÓN EN MÚSICA PROFESIONAL"]
[null,"APF2156522","ARTISTA PROFESIONAL EN FOLKLORE PROFESIONAL"]
[null,"APF2156651","ARTISTA PROFESIONAL EN LA ESPECIALIDAD ACTUACIÓN TEATRAL PROFESIONAL"]
[null,"APF2136685","ARTISTA PROFESIONAL EN LA ESPECIALIDAD ARTES PLÁSTICAS Y VISUALES CON MENCIÓN EN ESCULTURA PROFESIONAL"]
[null,"APF2136686","ARTISTA PROFESIONAL EN LA ESPECIALIDAD ARTES PLÁSTICAS Y VISUALES CON MENCIÓN EN GRABADO DISEÑO GRÁFICO PROFESIONAL"]
[null,"APF2136687","ARTISTA PROFESIONAL EN LA ESPECIALIDAD ARTES PLÁSTICAS Y VISUALES CON MENCIÓN EN PINTURA PROFESIONAL"]
[null,"APF2136678","ARTISTA PROFESIONAL EN LA ESPECIALIDAD DE ARTES PLÁSTICAS PROFESIONAL"]
[null,"APF2136645","ARTISTA PROFESIONAL EN LA ESPECIALIDAD DE ARTES PLÁSTICAS PROFESIONAL-A"]
[null,"APF2136688","ARTISTA PROFESIONAL EN LA ESPECIALIDAD DE ARTES PLÁSTICAS PROFESIONAL-B"]
[null,"APF2136689","ARTISTA PROFESIONAL EN LA ESPECIALIDAD DE ARTES PLÁSTICAS Y VISUALES PROFESIONAL"]
[null,"APF2156690","ARTISTA PROFESIONAL EN LA ESPECIALIDAD DE DANZA PROFESIONAL"]
[null,"APF2136681","ARTISTA PROFESIONAL EN LA ESPECIALIDAD DE ESCULTURA PROFESIONAL"]
[null,"APF2136682","ARTISTA PROFESIONAL EN LA ESPECIALIDAD DE GRABADO PROFESIONAL"]
[null,"APF2156691","ARTISTA PROFESIONAL EN LA ESPECIALIDAD DE MÚSICA PROFESIONAL"]
[null,"APF2136683","ARTISTA PROFESIONAL EN LA ESPECIALIDAD DE PINTURA PROFESIONAL"]
[null,"APF2136684","ARTISTA PROFESIONAL EN LA ESPECIALIDAD DE PRODUCCIÓN EN DISEÑO GRÁFICO Y ARTES PUBLICITARIAS PROFESIONAL"]
[null,"APF2156692","ARTISTA PROFESIONAL EN LA ESPECIALIDAD DE TEATRO PROFESIONAL"]
[null,"APF2136646","ARTISTA PROFESIONAL EN LA ESPECIALIDAD EN ARTES PLÁSTICAS CON MENCIÓN EN ESCULTURA PROFESIONAL"]
[null,"APF2136647","ARTISTA PROFESIONAL EN LA ESPECIALIDAD EN ARTES PLÁSTICAS CON MENCIÓN EN GRABADO PROFESIONAL"]
[null,"APF2136648","ARTISTA PROFESIONAL EN LA ESPECIALIDAD EN ARTES PLÁSTICAS CON MENCIÓN EN PINTURA PROFESIONAL"]
[null,"APF2156652","ARTISTA PROFESIONAL EN LA ESPECIALIDAD MÚSICA PROFESIONAL"]
[null,"APF2156693","ARTISTA PROFESIONAL EN LA INTERPRETACIÓN MUSICAL PROFESIONAL "]
[null,"APF2156491","ARTISTA PROFESIONAL EN MÚSICA PROFESIONAL-A"]
[null,"APF2156679","ARTISTA PROFESIONAL EN MÚSICA PROFESIONAL-B"]
[null,"APF2136680","ARTISTA PROFESIONAL EN PINTURA Y ESCULTURA PROFESIONAL"]
[null,"APF2156492","ARTISTA PROFESIONAL EN TEATRO PROFESIONAL"]
[null,"APF2253140","ARTISTA PROFESIONAL ESPECIALIDAD ARTE DRAMÁTICO"]
[null,"APF2136694","CONSERVACIÓN Y RESTAURACIÓN PROFESIONAL"]
[null,"APF2156132","DANZA PROFESIONAL"]
[null,"APF2156664","DOCENTEEN DANZA CLÁSICA PROFESIONAL"]
[null,"APF1616521","DOCENTEEN DANZA CLÁSICA PROFESIONAL-B"]
[null,"APF1616526","DOCENTEEN EDUCACIÓN EN DANZA PROFESIONAL"]
[null,"APF1616525","DOCENTEEN EDUCACIÓN MUSICAL CON MENCIÓN EN UN INSTRUMENTO PROFESIONAL"]
[null,"APF1616524","DOCENTEEN EDUCACIÓN MUSICAL PROFESIONAL"]
[null,"APF1616695","EDUCACIÓN ARTÍSTICA ARTES PLÁSTICAS Y VISUALES PROFESIONAL"]
[null,"APF1616696","EDUCACIÓN ARTÍSTICA CON MENCIÓN EN ARTES PLÁSTICAS PROFESIONAL"]
[null,"APF1616697","EDUCACIÓN ARTÍSTICA CON MENCIÓN EN DANZA PROFESIONAL"]
[null,"APF1616698","EDUCACIÓN ARTÍSTICA CON MENCIÓN EN MÚSICA PROFESIONAL"]
[null,"APF1616699","EDUCACIÓN ARTÍSTICA CON MENCIÓN EN TEATRO PROFESIONAL"]
[null,"APF1616494","EDUCACIÓN ARTÍSTICA EN ARTES PLÁSTICAS Y VISUALES PROFESIONAL"]
[null,"APF1616497","EDUCACIÓN ARTÍSTICA EN DANZA PROFESIONAL"]
[null,"APF1616653","EDUCACIÓN ARTÍSTICA EN FOLKLORE CON MENCIÓN EN DANZA PROFESIONAL"]
[null,"APF1616654","EDUCACIÓN ARTÍSTICA EN FOLKLORE CON MENCIÓN EN MÚSICA PROFESIONAL"]
[null,"APF1616523","EDUCACIÓN ARTÍSTICA EN FOLKLORE PROFESIONAL"]
[null,"APF1616658","EDUCACIÓN ARTÍSTICA EN LA ESPECIALIDAD DANZAS FOLKLÓRICAS PROFESIONAL"]
[null,"APF1616659","EDUCACIÓN ARTÍSTICA EN LA ESPECIALIDAD DE ARTE DRAMÁTICO PROFESIONAL"]
[null,"APF1616708","EDUCACIÓN ARTÍSTICA EN LA ESPECIALIDAD DE ARTES PLÁSTICAS PROFESIONAL"]
[null,"APF1616655","EDUCACIÓN ARTÍSTICA EN LA ESPECIALIDAD DE ARTES PLÁSTICAS Y VISUALES PROFESIONAL"]
[null,"APF1616702","EDUCACIÓN ARTÍSTICA EN LA ESPECIALIDAD DE ARTES PLÁSTICAS Y VISUALES PROFESIONAL"]
[null,"APF1616703","EDUCACIÓN ARTÍSTICA EN LA ESPECIALIDAD DE ARTES VISUALES PROFESIONAL"]
[null,"APF1616709","EDUCACIÓN ARTÍSTICA EN LA ESPECIALIDAD DE DANZA FOLKLÓRICA PROFESIONAL"]
[null,"APF1616656","EDUCACIÓN ARTÍSTICA EN LA ESPECIALIDAD DE DANZA PROFESIONAL"]
[null,"APF1616704","EDUCACIÓN ARTÍSTICA EN LA ESPECIALIDAD DE DANZA PROFESIONAL"]
[null,"APF1616705","EDUCACIÓN ARTÍSTICA EN LA ESPECIALIDAD DE DANZAS FOLKLÓRICAS PROFESIONAL"]
[null,"APF1616657","EDUCACIÓN ARTÍSTICA EN LA ESPECIALIDAD DE EDUCACIÓN MUSICAL PROFESIONAL"]
[null,"APF1616700","EDUCACIÓN ARTÍSTICA EN LA ESPECIALIDAD DE MÚSICA PROFESIONAL"]
[null,"APF1616706","EDUCACIÓN ARTÍSTICA EN LA ESPECIALIDAD DE MÚSICA PROFESIONAL-B"]
[null,"APF1616710","EDUCACIÓN ARTÍSTICA EN LA ESPECIALIDAD DE MÚSICA PROFESIONAL-C"]
[null,"APF1616707","EDUCACIÓN ARTÍSTICA EN LA ESPECIALIDAD DE TEATRO PROFESIONAL"]
[null,"APF1616711","EDUCACIÓN ARTÍSTICA EN LA ESPECIALIDAD EN ARTES VISUALES PROFESIONAL"]
[null,"APF1616712","EDUCACIÓN ARTÍSTICA EN LA ESPECIALIDAD EN DANZA PROFESIONAL"]
[null,"APF1616713","EDUCACIÓN ARTÍSTICA EN LA ESPECIALIDAD EN MÚSICA PROFESIONAL"]
[null,"APF1616714","EDUCACIÓN ARTÍSTICA EN LA ESPECIALIDAD EN TEATRO PROFESIONAL"]
[null,"APF1616660","EDUCACIÓN ARTÍSTICA EN LA ESPECIALIDAD MÚSICA PROFESIONAL"]
[null,"APF1616715","EDUCACIÓN ARTÍSTICA EN LA ESPECIALIDAD MÚSICA PROFESIONAL-B"]
[null,"APF1616661","EDUCACIÓN ARTÍSTICA EN LA ESPECIALIDAD TEATRO PROFESIONAL"]
[null,"APF1616495","EDUCACIÓN ARTÍSTICA EN MÚSICA PROFESIONAL"]
[null,"APF1616496","EDUCACIÓN ARTÍSTICA EN TEATRO PROFESIONAL"]
[null,"APF1616701","EDUCACIÓN ARTÍSTICA MÚSICA PROFESIONAL"]
[null,"APF1616716","EDUCACIÓN MUSICAL PROFESIONAL"]
[null,"APF1616665","EDUCACIÓN MUSICAL Y ARTES PROFESIONAL"]
[null,"APF1616718","FORMACIÓN ARTÍSTICA CON LA ESPECIALIDADE DE MÚSICA PROFESIONAL"]
[null,"APF1616717","FORMACIÓN ARTÍSTICA CON LA ESPECIALIDADE DEARTES PLÁSTICAS PROFESIONAL"]
[null,"APF1616719","FORMACIÓN ARTÍSTICA EN LA ESPECIALIDAD EN DANZA CON MENCIÓN EN DANZA CLÁSICA, MODERNA O TRADICIONAL PROFESIONAL"]
[null,"APF1616720","FORMACIÓN ARTÍSTICA EN LA ESPECIALIDAD EN DIRECCIÓN MUSICAL CON MENCIÓN EN DIRECCIÓN CORAL ORQUESTAL O BANDA PROFESIONAL"]
[null,"APF1616721","FORMACIÓN ARTÍSTICA EN LA ESPECIALIDAD EN INTERPRETACIÓN INSTRUMENTAL CON MENCIÓN EN UN INSTRUMENTO PROFESIONAL"]
[null,"APF1616722","FORMACIÓN ARTÍSTICA EN LA ESPECIALIDAD EN MÚSICA CON MENCIÓN EN CANTO PROFESIONAL"]
[null,"APF1616723","FORMACIÓN ARTÍSTICA EN LA ESPECIALIDAD EN MÚSICA CON MENCIÓN EN COMPOSICIÓN MUSICAL PROFESIONAL"]
[null,"APF1616724","FORMACIÓN ARTÍSTICA EN LA ESPECIALIDAD EN MÚSICA CON MENCIÓN EN MUSICOLOGÍA PROFESIONAL"]
[null,"APF1616662","FORMACIÓN ARTÍSTICA EN LA ESPECIALIDAD TEATRO CON MENCIÓN EN ACTUACIÓN PROFESIONAL"]
[null,"APF1616663","FORMACIÓN ARTÍSTICA EN LA ESPECIALIDAD TEATRO CON MENCIÓN EN DISEÑO ESCENOGRÁFICO PROFESIONAL"]
[null,"APF1616725","FORMACIÓN DOCENTEEN LA ESPECIALIDAD EDUCACIÓN DANZA CON MENCIÓN EN DANZA CLÁSICA MODERNA O TRADICIONAL PROFESIONAL"]
[null,"APF1616727","FORMACIÓN DOCENTEEN LA ESPECIALIDAD EDUCACIÓN MUSICAL CON MENCIÓN EN UN INSTRUMENTO PROFESIONAL"]
[null,"APF1616726","FORMACIÓN DOCENTEEN LA ESPECIALIDAD EDUCACIÓN MUSICAL PROFESIONAL"]
[null,"APF2156527","INTERPRETACIÓN INSTRUMENTAL PROFESIONAL"]
[null,"APF2156528","INTERPRETACIÓN MUSICAL CANTO PROFESIONAL"]
[null,"APF2156728","INTERPRETACIÓN MUSICAL CON MENCIÓN EN ACORDEÓN PROFESIONAL"]
[null,"APF2156729","INTERPRETACIÓN MUSICAL CON MENCIÓN EN CANTO PROFESIONAL"]
[null,"APF2156730","INTERPRETACIÓN MUSICAL CON MENCIÓN EN CIOLÍN PROFESIONAL"]
[null,"APF2156731","INTERPRETACIÓN MUSICAL CON MENCIÓN EN CLARINETEPROFESIONAL"]
[null,"APF2156732","INTERPRETACIÓN MUSICAL CON MENCIÓN EN CONTRABAJO PROFESIONAL"]
[null,"APF2156733","INTERPRETACIÓN MUSICAL CON MENCIÓN EN CORNO PROFESIONAL"]
[null,"APF2156734","INTERPRETACIÓN MUSICAL CON MENCIÓN EN FAGOT PROFESIONAL"]
[null,"APF2156735","INTERPRETACIÓN MUSICAL CON MENCIÓN EN FLAUTA TRAVERSA PROFESIONAL"]
[null,"APF2156736","INTERPRETACIÓN MUSICAL CON MENCIÓN EN GUITARRA PROFESIONAL"]
[null,"APF2156737","INTERPRETACIÓN MUSICAL CON MENCIÓN EN INSTRUMENTOS NATIVOS PROFESIONAL"]
[null,"APF2156738","INTERPRETACIÓN MUSICAL CON MENCIÓN EN OBOE PROFESIONAL"]
[null,"APF2156739","INTERPRETACIÓN MUSICAL CON MENCIÓN EN PERCUSIÓN PROFESIONAL"]
[null,"APF2156740","INTERPRETACIÓN MUSICAL CON MENCIÓN EN PIANO PROFESIONAL"]
[null,"APF2156741","INTERPRETACIÓN MUSICAL CON MENCIÓN EN SAXOFÓN PROFESIONAL"]
[null,"APF2156742","INTERPRETACIÓN MUSICAL CON MENCIÓN EN TROMBÓN PROFESIONAL"]
[null,"APF2156743","INTERPRETACIÓN MUSICAL CON MENCIÓN EN TROMPETA PROFESIONAL"]
[null,"APF2156744","INTERPRETACIÓN MUSICAL CON MENCIÓN EN TUBA PROFESIONAL"]
[null,"APF2156745","INTERPRETACIÓN MUSICAL CON MENCIÓN EN VIOLA PROFESIONAL"]
[null,"APF2156746","INTERPRETACIÓN MUSICAL CON MENCIÓN EN VIOLONCHELLO PROFESIONAL"]
[null,"APF2156666","INTERPRETACIÓN MUSICAL PROFESIONAL"]
[null,"APF2156667","INTÉRPRETEEN DANZA CLÁSICA PROFESIONAL"]
[null,"APF2136747","MEDIOS AUDIOVISUALES PROFESIONAL"]
[null,"APF2156751","MÚSICA EN LA ESPECIALIDAD DEEJECUCIÓN INSTRUMENTAL CON MENCIÓN EN CANTO PROFESIONAL"]
[null,"APF2156752","MÚSICA EN LA ESPECIALIDAD DEEJECUCIÓN INSTRUMENTAL CON MENCIÓN EN COMPOSICIÓN PROFESIONAL"]
[null,"APF2156753","MÚSICA EN LA ESPECIALIDAD DEEJECUCIÓN INSTRUMENTAL CON MENCIÓN EN DIRECCIÓN CORAL PROFESIONAL"]
[null,"APF2156754","MÚSICA EN LA ESPECIALIDAD DEEJECUCIÓN INSTRUMENTAL CON MENCIÓN EN DIRECCIÓN DEBANDA PROFESIONAL"]
[null,"APF2156131","MÚSICA PROFESIONAL"]
[null,"APF2156748","MÚSICA PROFESIONAL"]
[null,"APF2156749","MÚSICA Y ARTES VISUALES DEL ÁREA DE DOCENCIA PROFESIONAL"]
[null,"APF2156750","MÚSICA Y TÉCNOLOGÍAS DESONIDO, ESPECIALIDAD EN PRODUCCIÓN MUSICAL PROFESIONAL"]
[null,"APF2156755","MÚSICO PROFESIONAL EN LA ESPECIALIDAD DEINTERPRETACIÓN MUSICAL CANTO PROFESIONAL"]
[null,"APF2156756","MÚSICO PROFESIONAL EN LA ESPECIALIDAD DEINTERPRETACIÓN MUSICAL CON MENCIÓN EN ARPA PROFESIONAL"]
[null,"APF2156757","MÚSICO PROFESIONAL EN LA ESPECIALIDAD DEINTERPRETACIÓN MUSICAL CON MENCIÓN EN CHARANGO PROFESIONAL"]
[null,"APF2156758","MÚSICO PROFESIONAL EN LA ESPECIALIDAD DEINTERPRETACIÓN MUSICAL CON MENCIÓN EN CLARINETE PROFESIONAL"]
[null,"APF2156759","MÚSICO PROFESIONAL EN LA ESPECIALIDAD DEINTERPRETACIÓN MUSICAL CON MENCIÓN EN CONTRABAJO PROFESIONAL"]
[null,"APF2156760","MÚSICO PROFESIONAL EN LA ESPECIALIDAD DEINTERPRETACIÓN MUSICAL CON MENCIÓN EN CORNO PROFESIONAL"]
[null,"APF2156761","MÚSICO PROFESIONAL EN LA ESPECIALIDAD DEINTERPRETACIÓN MUSICAL CON MENCIÓN EN EUFONIO PROFESIONAL"]
[null,"APF2156762","MÚSICO PROFESIONAL EN LA ESPECIALIDAD DEINTERPRETACIÓN MUSICAL CON MENCIÓN EN FAGOT PROFESIONAL"]
[null,"APF2156763","MÚSICO PROFESIONAL EN LA ESPECIALIDAD DEINTERPRETACIÓN MUSICAL CON MENCIÓN EN FLAUTA DULCEPROFESIONAL"]
[null,"APF2156764","MÚSICO PROFESIONAL EN LA ESPECIALIDAD DEINTERPRETACIÓN MUSICAL CON MENCIÓN EN FLAUTA TRAVERSA PROFESIONAL"]
[null,"APF2156765","MÚSICO PROFESIONAL EN LA ESPECIALIDAD DEINTERPRETACIÓN MUSICAL CON MENCIÓN EN GUITARRA PROFESIONAL"]
[null,"APF2156766","MÚSICO PROFESIONAL EN LA ESPECIALIDAD DEINTERPRETACIÓN MUSICAL CON MENCIÓN EN OBOE PROFESIONAL"]
[null,"APF2156767","MÚSICO PROFESIONAL EN LA ESPECIALIDAD DEINTERPRETACIÓN MUSICAL CON MENCIÓN EN ORGANO PROFESIONAL"]
[null,"APF2156768","MÚSICO PROFESIONAL EN LA ESPECIALIDAD DEINTERPRETACIÓN MUSICAL CON MENCIÓN EN PERCUSIÓN PROFESIONAL"]
[null,"APF2156769","MÚSICO PROFESIONAL EN LA ESPECIALIDAD DEINTERPRETACIÓN MUSICAL CON MENCIÓN EN PIANO PROFESIONAL"]
[null,"APF2156770","MÚSICO PROFESIONAL EN LA ESPECIALIDAD DEINTERPRETACIÓN MUSICAL CON MENCIÓN EN QUENA PROFESIONAL"]
[null,"APF2156771","MÚSICO PROFESIONAL EN LA ESPECIALIDAD DEINTERPRETACIÓN MUSICAL CON MENCIÓN EN SAXOFÓN PROFESIONAL"]
[null,"APF2156772","MÚSICO PROFESIONAL EN LA ESPECIALIDAD DEINTERPRETACIÓN MUSICAL CON MENCIÓN EN TROMBÓN PROFESIONAL"]
[null,"APF2156773","MÚSICO PROFESIONAL EN LA ESPECIALIDAD DEINTERPRETACIÓN MUSICAL CON MENCIÓN EN TROMPETA PROFESIONAL"]
[null,"APF2156774","MÚSICO PROFESIONAL EN LA ESPECIALIDAD DEINTERPRETACIÓN MUSICAL CON MENCIÓN EN TUBA PROFESIONAL"]
[null,"APF2156775","MÚSICO PROFESIONAL EN LA ESPECIALIDAD DEINTERPRETACIÓN MUSICAL CON MENCIÓN EN VIOLA PROFESIONAL"]
[null,"APF2156776","MÚSICO PROFESIONAL EN LA ESPECIALIDAD DEINTERPRETACIÓN MUSICAL CON MENCIÓN EN VIOLÍN PROFESIONAL"]
[null,"APF2156777","MÚSICO PROFESIONAL EN LA ESPECIALIDAD DEINTERPRETACIÓN MUSICAL CON MENCIÓN EN VIOLONCHELLO PROFESIONAL"]
[null,"APF2156778","MÚSICO PROFESIONAL EN LA ESPECIALIDAD DEINTERPRETACIÓN MUSICAL DIRECCIÓN MUSICAL PROFESIONAL"]
[null,"APF1616779","PROFESOR DEEDUCACIÓN ARTÍSTICA EN LA ESPECIALIDAD ARTES VISUALES PROFESIONAL"]
[null,"APF1616780","PROFESOR DEEDUCACIÓN ARTÍSTICA EN LA ESPECIALIDAD DANZA PROFESIONAL"]
[null,"APF1616781","PROFESOR DEEDUCACIÓN ARTÍSTICA EN LA ESPECIALIDAD MÚSICA PROFESIONAL"]
[null,"APF1616782","PROFESOR DEEDUCACIÓN ARTÍSTICA EN LA ESPECIALIDAD TEATRO PROFESIONAL"]
[null,"APF2136783","PROGRAMA ACADÉMICO DE ARTES PLÁSTICAS Y VISUALES EN LA ESPECIALIDAD DE ESCULTURA PROFESIONAL"]
[null,"APF2136784","PROGRAMA ACADÉMICO DE ARTES PLÁSTICAS Y VISUALES EN LA ESPECIALIDAD DE GRABADO PROFESIONAL"]
[null,"APF2136785","PROGRAMA ACADÉMICO DE ARTES PLÁSTICAS Y VISUALES EN LA ESPECIALIDAD DE PINTURA PROFESIONAL"]
[null,"APF2136786","PROGRAMA ACADÉMICO DE ARTES PLÁSTICAS Y VISUALES EN LA ESPECIALIDAD DE RESTAURACIÓN Y CONSERVACIÓN PROFESIONAL"]
[null,"APF2156129","TEATRO PROFESIONAL"]
[null,"APFAG99999","OTROS"]

{"sheet":"Prompt","index":3,"n_rows":39,"n_cols":4,"rows_kept":39,"cut":false,"hidden":false,"merged":[[1,3,2,5],[4,1,6,8],[9,1,10,8],[38,1,39,8]]}
[]
[null,null,null,"¡ATENCIÓN!"]
[]
[]
[null,"Para hacer uso de las funcionalidades de esta Cédula Electrónica debe habilitar macros"]
[]
[]
[]
[]
[null,"Si utiliza Excel 2000, 2002, 2003 siga el siguiente procedimiento:"]
[]
[]
[]
[]
[]
[]
[]
[]
[]
[]
[]
[]
[]
[]
[]
[]
[]
[]
[]
[]
[]
[]
[]
[]
[]
[]
[]
[]
[null,"Si utiliza Excel 2007 siga el siguiente procedimiento:"]